bitfinex/quotes_SOLUSD_20240821
["timestamp","ask_amount","ask_price","bid_price","bid_amount"]
[1724268494647,16.4669,142.72,142.69,1.40148713]
[1724268495050,16.4669,142.72,142.68,13.22]
[1724268497442,7.0058,142.74,142.68,13.22]
[1724268497850,3.64178297,142.8,142.73,66.1]
[1724268498293,26.33688297,142.84,142.74,0.12549]
[1724268498358,26.33688297,142.84,142.74,46.40042309]
[1724268498533,26.33688297,142.84,142.74,45.0]
[1724268498534,22.6951,142.84,142.74,45.0]
[1724268498827,13.22,142.81,142.75,20.0]
[1724268499029,13.22,142.79,142.73,45.0]
[1724268499230,13.22,142.77,142.67,6.2136]
[1724268499449,13.22,142.77,142.68,78.22]
[1724268499657,13.22,142.75,142.68,20.0]
[1724268499849,7.91361415,142.76,142.68,20.0]
[1724268499850,13.22,142.73,142.68,20.0]
[1724268500027,6.5622,142.76,142.66,13.22]
[1724268500028,13.22,142.75,142.66,13.22]
[1724268500226,13.22,142.75,142.67,20.0]
[1724268500461,1.35141415,142.74,142.66,13.22]
[1724268500759,14.57141415,142.73,142.63,6.2396]
[1724268500964,13.22,142.71,142.59,6.525]
[1724268501147,13.22,142.71,142.59,59.405]
[1724268501331,13.22,142.71,142.62,13.22]
[1724268501541,1.35141415,142.7,142.62,13.22]
[1724268502040,13.22,142.73,142.64,13.22]
[1724268502242,20.0,142.73,142.66,13.22]
[1724268502449,6.5622,142.76,142.68,13.22]
[1724268502643,20.0,142.75,142.68,13.22]
[1724268502831,6.5622,142.76,142.69,45.0]
[1724268503162,19.7822,142.76,142.69,45.0]
[1724268503860,19.7822,142.76,142.7,13.22]
[1724268503861,6.5622,142.76,142.7,13.22]
[1724268504039,6.5622,142.76,142.66,69.3094]
[1724268504239,6.5622,142.76,142.67,78.22]
[1724268504457,6.5622,142.76,142.69,13.22]
[1724268505032,6.5622,142.76,142.7,45.0]
[1724268506258,6.5622,142.76,142.71,13.22]
[1724268506465,6.2328,142.79,142.71,33.02]
[1724268506639,6.2328,142.79,142.72,45.0]
[1724268507056,1.35141415,142.78,142.72,45.0]
[1724268507445,39.2528,142.79,142.67,59.1164]
[1724268507650,39.2528,142.79,142.68,45.0]
[1724268507865,39.2528,142.79,142.69,20.0]
[1724268508050,39.2528,142.79,142.7,45.0]
[1724268508640,33.02,142.77,142.67,20.0]
[1724268508848,1.35141415,142.76,142.66,20.0]
[1724268509050,33.02,142.77,142.66,20.0]
[1724268509261,6.2328,142.79,142.67,33.02]
[1724268509459,20.0,142.78,142.68,20.0]
[1724268509764,53.02,142.78,142.68,20.0]
[1724268510063,53.02,142.78,142.69,45.0]
[1724268512263,20.0,142.78,142.69,45.0]
[1724268514034,53.02,142.78,142.69,45.0]
[1724268514237,60.0239,142.78,142.69,45.0]
[1724268514563,53.02,142.78,142.69,45.0]
[1724268514755,7.0043,142.77,142.63,6.5776]
[1724268515067,7.0043,142.77,142.65,33.02]
[1724268515068,54.37141415,142.76,142.65,33.02]
[1724268515445,61.37621415,142.76,142.65,33.02]
[1724268516054,61.37621415,142.76,142.63,6.5776]
[1724268516055,60.0248,142.76,142.63,39.5976]
[1724268516247,17.52091415,142.75,142.63,39.5976]
[1724268516452,33.02,142.74,142.63,39.5976]
[1724268516652,39.1098,142.72,142.62,15.5049]
[1724268516970,39.1098,142.72,142.6,6.1924]
[1724268517348,1.35141415,142.71,142.6,6.1924]
[1724268517570,39.1098,142.72,142.6,6.1924]
[1724268517870,46.1169,142.72,142.6,6.1924]
[1724268518051,6.0898,142.72,142.62,33.02]
[1724268518571,39.1098,142.72,142.61,20.0]
[1724268519397,21.35141415,142.71,142.59,40.3325885]
[1724268519873,20.0,142.71,142.59,40.3325885]
[1724268520250,21.35141415,142.71,142.59,40.3325885]
[1724268520464,20.0,142.71,142.59,40.3325885]
[1724268520666,27.0072,142.71,142.59,33.02]
[1724268520849,27.0072,142.71,142.6,65.0]
[1724268521452,20.0,142.71,142.6,65.0]
[1724268523683,6.0898,142.72,142.6,65.0]
[1724268523888,6.0898,142.72,142.61,0.25098]
[1724268524259,6.0898,142.72,142.63,33.02]
[1724268524474,6.0898,142.72,142.64,45.0]
[1724268524861,1.35141415,142.71,142.64,45.0]
[1724268525063,46.1169,142.72,142.6,20.0]
[1724268525362,39.1098,142.72,142.61,33.02]
[1724268525567,39.1098,142.72,142.62,20.0]
[1724268526473,39.1098,142.72,142.63,45.0]
[1724268526779,6.0898,142.72,142.63,78.02]
[1724268528180,46.1167,142.72,142.62,20.0]
[1724268528693,13.23,142.71,142.62,33.23]
[1724268529679,13.23,142.71,142.63,45.0]
[1724268531679,13.23,142.71,142.64,13.23]
[1724268531887,6.0898,142.72,142.65,45.0]
[1724268532595,6.0898,142.72,142.66,1.40158073]
[1724268532885,6.0898,142.72,142.65,45.0]
[1724268535276,14.58141415,142.71,142.65,45.0]
[1724268535495,13.23,142.71,142.65,45.0]
[1724268536378,6.0898,142.72,142.65,45.0]
[1724268536690,19.3198,142.72,142.65,45.0]
[1724268536898,26.3268,142.72,142.65,45.0]
[1724268537474,19.3198,142.72,142.65,45.0]
[1724268540400,6.0898,142.72,142.66,13.23]
[1724268540596,6.0898,142.72,142.67,45.0]
[1724268541407,20.2374,142.71,142.62,20.0]
[1724268541587,13.23,142.69,142.59,33.23]
[1724268543194,13.23,142.69,142.61,13.23]
[1724268543399,15.8808,142.7,142.62,20.0]
[1724268543581,15.8808,142.7,142.63,45.0]
[1724268544098,15.8808,142.7,142.62,45.0]
[1724268548681,15.8808,142.7,142.65,13.23]
[1724268548988,15.8808,142.7,142.67,13.23]
[1724268549193,15.8808,142.7,142.68,46.40147386]
[1724268549596,6.0898,142.72,142.68,46.40147386]
[1724268549809,6.0898,142.72,142.68,45.0]
[1724268552432,6.0898,142.72,142.64,13.23]
[1724268552709,6.0898,142.72,142.65,20.0]
[1724268552887,19.3198,142.72,142.65,20.0]
[1724268553211,19.3198,142.72,142.63,13.23]
[1724268553505,19.3198,142.72,142.64,20.0]
[1724268553719,6.0898,142.72,142.65,58.23]
[1724268558935,6.0898,142.72,142.67,13.23]
[1724268559107,15.0045,142.73,142.68,45.0]
[1724268559319,15.0045,142.73,142.69,1.40123263]
[1724268559501,15.0045,142.73,142.69,14.63123263]
[1724268559809,15.0045,142.73,142.7,45.0]
[1724268561913,6.2993,142.76,142.7,45.0]
[1724268563990,13.3041,142.76,142.7,45.0]
[1724268564191,6.2993,142.76,142.7,45.0]
[1724268564712,6.2993,142.76,142.71,13.23]
[1724268564903,6.2993,142.76,142.72,45.0]
[1724268566214,6.2993,142.76,142.69,13.23]
[1724268566422,6.2993,142.76,142.7,65.0]
[1724268568223,6.2993,142.76,142.7,45.0]
[1724268571036,6.2993,142.76,142.71,13.23]
[1724268571204,6.2993,142.76,142.72,45.0]
[1724268573135,21.6016,142.8,142.73,13.23]
[1724268573296,34.8316,142.8,142.74,45.0]
[1724268574532,34.8316,142.8,142.69,23.067]
[1724268574824,13.23,142.78,142.7,78.23]
[1724268576117,20.2338,142.78,142.68,13.23]
[1724268576317,20.2338,142.78,142.69,0.12549]
[1724268576527,5.81630677,142.77,142.69,0.12549]
[1724268576710,5.81630677,142.76,142.69,0.12549]
[1724268576913,5.81630677,142.75,142.69,0.12549]
[1724268577224,20.2338,142.78,142.69,45.12549]
[1724268577404,5.81635613,142.77,142.69,45.12549]
[1724268577600,5.81635613,142.76,142.69,45.12549]
[1724268577925,5.81635613,142.75,142.69,45.12549]
[1724268578228,20.2338,142.78,142.69,45.12549]
[1724268578522,5.81631302,142.77,142.69,45.12549]
[1724268578719,5.81631302,142.76,142.69,45.12549]
[1724268578930,5.81631302,142.75,142.69,45.12549]
[1724268579141,20.2338,142.78,142.7,13.23]
[1724268579304,5.81617492,142.77,142.71,45.0]
[1724268579906,5.81617492,142.76,142.71,45.0]
[1724268580130,20.2338,142.78,142.71,45.0]
[1724268580131,5.81617492,142.75,142.71,45.0]
[1724268580304,13.23,142.78,142.71,45.0]
[1724268580505,5.81630828,142.77,142.71,45.0]
[1724268580714,5.81630828,142.76,142.71,45.0]
[1724268580907,5.81630828,142.75,142.71,45.0]
[1724268581112,13.23,142.78,142.71,45.0]
[1724268581327,5.81631021,142.77,142.71,45.0]
[1724268581632,5.81631021,142.76,142.71,45.0]
[1724268581828,5.81631021,142.75,142.71,45.0]
[1724268582039,13.23,142.78,142.71,45.0]
[1724268582212,5.81617526,142.77,142.71,45.0]
[1724268582411,13.23,142.78,142.71,45.0]
[1724268582626,5.81607157,142.77,142.71,45.0]
[1724268582825,5.81607157,142.76,142.71,45.0]
[1724268583132,13.23,142.78,142.71,45.0]
[1724268583309,5.8160171,142.77,142.71,45.0]
[1724268583510,5.8160171,142.76,142.71,45.0]
[1724268583814,13.23,142.78,142.71,45.0]
[1724268584122,5.81603872,142.77,142.71,45.0]
[1724268584313,5.81603872,142.76,142.71,45.0]
[1724268584522,20.2334,142.79,142.71,45.0]
[1724268584714,25.81600444,142.78,142.71,45.0]
[1724268584909,5.81600444,142.77,142.71,45.0]
[1724268588024,5.81600444,142.76,142.71,45.0]
[1724268588225,20.0,142.78,142.71,45.0]
[1724268588424,5.81599322,142.77,142.71,45.0]
[1724268588743,5.81599322,142.76,142.71,45.0]
[1724268588927,28.6044,142.8,142.72,13.23]
[1724268589126,20.0,142.79,142.73,45.0]
[1724268589323,5.81571913,142.78,142.73,45.0]
[1724268589528,5.81571913,142.77,142.73,45.0]
[1724268589732,5.81571913,142.76,142.73,45.0]
[1724268589923,20.0,142.79,142.73,45.0]
[1724268590117,5.81600111,142.78,142.73,45.0]
[1724268590428,5.81600111,142.77,142.73,45.0]
[1724268590628,5.81600111,142.76,142.73,45.0]
[1724268590826,5.81600111,142.75,142.73,45.0]
[1724268591044,5.81600111,142.76,142.7,29.4501]
[1724268591348,5.81627375,142.75,142.71,45.0]
[1724268591512,13.23,142.78,142.71,45.0]
[1724268591712,5.8162711,142.77,142.71,45.0]
[1724268591942,5.8162711,142.76,142.71,45.0]
[1724268592147,5.81617509,142.75,142.71,45.0]
[1724268592327,13.23,142.78,142.71,45.0]
[1724268592528,5.81617526,142.77,142.71,45.0]
[1724268592842,13.23,142.78,142.71,45.0]
[1724268593050,5.81607228,142.77,142.71,45.0]
[1724268593220,5.81607228,142.76,142.71,45.0]
[1724268593543,5.81607228,142.75,142.71,45.0]
[1724268593848,13.23,142.78,142.71,45.0]
[1724268594046,5.81603837,142.77,142.71,45.0]
[1724268594244,5.81603837,142.76,142.71,45.0]
[1724268594431,5.81603837,142.75,142.71,45.0]
[1724268594628,5.81604014,142.74,142.71,45.0]
[1724268594829,13.23,142.78,142.71,45.0]
[1724268595052,5.81603766,142.77,142.71,45.0]
[1724268595239,13.23,142.78,142.71,45.0]
[1724268595240,5.81603766,142.76,142.71,45.0]
[1724268595547,5.81604085,142.75,142.71,45.0]
[1724268595932,5.81604085,142.74,142.71,45.0]
[1724268596134,13.23,142.78,142.71,45.0]
[1724268596342,5.81604201,142.77,142.71,45.0]
[1724268596648,5.81604201,142.76,142.72,13.23]
[1724268596853,5.81604201,142.75,142.73,45.0]
[1724268597152,20.0,142.79,142.73,45.0]
[1724268597349,5.8159789,142.78,142.73,45.0]
[1724268597527,5.8159789,142.77,142.73,45.0]
[1724268597727,5.8159789,142.76,142.73,45.0]
[1724268598041,5.8159789,142.75,142.73,45.0]
[1724268598241,20.0,142.79,142.73,45.0]
[1724268598579,5.81596801,142.78,142.73,45.0]
[1724268598846,5.81596801,142.77,142.73,45.0]
[1724268599050,5.81596801,142.76,142.73,45.0]
[1724268599226,5.81596801,142.75,142.73,45.0]
[1724268599428,5.81596801,142.74,142.73,45.0]
[1724268601153,5.81593865,142.74,142.73,45.0]
[1724268601524,5.81593865,142.74,142.7,16.2201]
[1724268601854,5.81593865,142.73,142.69,6.4576]
[1724268602152,13.23,142.76,142.68,13.23]
[1724268602357,5.81633393,142.75,142.69,20.0]
[1724268602536,5.81633393,142.74,142.69,20.0]
[1724268602739,5.81633393,142.73,142.69,20.0]
[1724268602924,13.23,142.76,142.69,20.0]
[1724268603126,5.81632697,142.75,142.69,20.0]
[1724268603327,5.81632697,142.74,142.69,20.0]
[1724268603527,5.81632697,142.73,142.69,20.0]
[1724268603726,5.81632697,142.72,142.7,45.0]
[1724268603947,7.0044,142.77,142.7,45.0]
[1724268604334,5.81637845,142.76,142.7,45.0]
[1724268605049,5.81637845,142.75,142.7,45.0]
[1724268605251,5.81634648,142.74,142.7,45.0]
[1724268605460,5.81634648,142.73,142.72,13.23]
[1724268605635,5.81634648,142.73,142.72,58.35549]
[1724268606358,5.81634648,142.73,142.72,58.48098]
[1724268607436,21.6016,142.8,142.72,58.48098]
[1724268607745,5.81570914,142.79,142.73,45.0]
[1724268607929,5.81570914,142.78,142.73,45.0]
[1724268608126,5.81570914,142.77,142.73,45.0]
[1724268608329,5.81570914,142.76,142.73,45.0]
[1724268608530,5.81570914,142.75,142.73,45.0]
[1724268608837,21.6016,142.8,142.73,45.0]
[1724268608838,5.81570914,142.74,142.73,45.0]
[1724268609231,5.81570914,142.74,142.73,45.25098]
[1724268609649,5.81570914,142.74,142.73,46.65163532]
[1724268609970,7.0018,142.82,142.73,65.25098]
[1724268610157,5.81497785,142.81,142.74,13.48098]
[1724268610342,5.81497785,142.8,142.75,45.0]
[1724268610691,20.2326,142.81,142.73,78.23]
[1724268610692,5.81497785,142.79,142.73,78.23]
[1724268610873,5.81494028,142.78,142.74,0.12549]
[1724268611030,5.81494028,142.78,142.73,78.23]
[1724268611226,5.81494028,142.77,142.73,78.23]
[1724268611439,5.81494028,142.76,142.73,65.0]
[1724268611752,5.81494028,142.75,142.73,45.0]
[1724268611955,5.81494028,142.74,142.73,45.0]
[1724268615053,5.81494028,142.74,142.73,45.12549]
[1724268615257,5.81494028,142.74,142.73,45.0]
[1724268615740,5.81494028,142.74,142.73,45.12549]
[1724268616637,5.81494028,142.74,142.73,58.48098]
[1724268617048,7.0024,142.81,142.73,58.48098]
[1724268617247,5.81477703,142.8,142.73,58.48098]
[1724268617456,5.81477266,142.79,142.73,58.48098]
[1724268617964,5.81477266,142.78,142.73,58.48098]
[1724268618171,5.81477266,142.77,142.74,1.40064948]
[1724268618359,5.81477266,142.76,142.74,1.40064948]
[1724268618664,5.81477266,142.75,142.73,58.48098]
[1724268618842,5.81514721,142.74,142.72,16.5475]
[1724268619163,13.23,142.8,142.72,16.5475]
[1724268619164,5.81514721,142.73,142.72,16.5475]
[1724268619761,7.0033,142.79,142.72,16.5475]
[1724268619956,5.81545771,142.78,142.72,16.5475]
[1724268620257,5.81545771,142.77,142.73,45.0]
[1724268620444,5.81545771,142.76,142.73,45.0]
[1724268620645,5.81545771,142.75,142.73,45.0]
[1724268620868,20.2342,142.78,142.73,45.0]
[1724268621195,28.19240525,142.82,142.75,15.2932]
[1724268621482,5.8158961,142.77,142.76,45.25098]
[1724268621653,15.6414,142.83,142.76,65.0]
[1724268621856,19.04416868,142.82,142.77,20.0]
[1724268622162,13.23,142.82,142.76,65.0]
[1724268622358,13.23,142.82,142.76,45.0]
[1724268623671,22.6428,142.83,142.71,15.2932]
[1724268623672,13.23,142.78,142.71,15.2932]
[1724268624112,13.23,142.76,142.69,6.561]
[1724268624252,8.35471415,142.79,142.69,6.561]
[1724268624253,14.45321415,142.79,142.69,6.561]
[1724268624448,13.23,142.74,142.65,21.8542]
[1724268625764,13.23,142.74,142.66,45.25098]
[1724268625962,13.23,142.74,142.66,0.12549]
[1724268626278,13.23,142.74,142.66,20.0]
[1724268626463,33.05,142.75,142.66,20.0]
[1724268626866,34.40141415,142.75,142.66,20.0]
[1724268627470,33.05,142.75,142.67,45.25098]
[1724268627673,48.4467,142.73,142.63,7.32828641]
[1724268627849,48.4467,142.73,142.62,15.9287]
[1724268627850,1.35141415,142.72,142.62,15.9287]
[1724268628050,8.35821415,142.72,142.62,15.9287]
[1724268628676,7.0068,142.72,142.62,15.9287]
[1724268629251,7.0068,142.72,142.63,20.0]
[1724268630170,7.0068,142.72,142.64,45.0]
[1724268630351,40.0574,142.71,142.63,20.0]
[1724268630773,7.0078,142.7,142.63,20.0]
[1724268630975,33.05,142.71,142.63,20.0]
[1724268631293,40.0572,142.71,142.63,20.0]
[1724268631648,7.0072,142.71,142.63,20.0]
[1724268631844,7.0072,142.71,142.64,45.0]
[1724268632270,7.0067,142.72,142.64,45.0]
[1724268632474,22.403,142.73,142.64,45.0]
[1724268632655,22.403,142.73,142.65,0.25098]
[1724268634955,6.2439,142.74,142.65,33.30098]
[1724268635157,7.0057,142.75,142.66,45.0]
[1724268635371,20.0,142.74,142.66,45.0]
[1724268635978,27.0059,142.74,142.66,45.0]
[1724268636174,7.0069,142.72,142.66,45.0]
[1724268638685,7.0063,142.73,142.66,45.0]
[1724268638852,27.0058,142.74,142.66,45.0]
[1724268639361,7.0062,142.73,142.66,45.0]
[1724268639678,33.05,142.73,142.66,45.0]
[1724268640054,7.0071,142.72,142.66,45.0]
[1724268640687,40.0562,142.73,142.66,45.0]
[1724268641678,7.0067,142.72,142.66,45.0]
[1724268642181,40.0563,142.73,142.66,45.0]
[1724268643264,7.0067,142.72,142.66,45.0]
[1724268644975,7.0073,142.71,142.63,20.0]
[1724268645678,7.0067,142.72,142.63,53.05]
[1724268646484,7.0067,142.72,142.63,20.0]
[1724268646778,7.0067,142.72,142.64,45.0]
[1724268647287,33.05,142.73,142.64,45.0]
[1724268648489,13.23,142.71,142.64,45.0]
[1724268649179,20.2373,142.71,142.64,45.0]
[1724268650258,7.0077,142.7,142.64,45.0]
[1724268651387,7.0077,142.7,142.62,29.28419]
[1724268651388,13.23,142.69,142.62,15.9287]
[1724268652459,7.0092,142.67,142.62,15.9287]
[1724268652669,7.0087,142.68,142.62,15.9287]
[1724268652875,7.0087,142.68,142.62,17.33059675]
[1724268653487,7.0083,142.69,142.62,15.9287]
[1724268653670,7.0083,142.69,142.63,45.0]
[1724268653873,20.2378,142.7,142.63,45.0]
[1724268654089,13.23,142.7,142.63,45.0]
[1724268654598,20.2381,142.7,142.62,15.9287]
[1724268656090,20.2381,142.7,142.63,45.0]
[1724268656292,7.0072,142.71,142.63,45.0]
[1724268656499,53.6912,142.74,142.65,13.23]
[1724268656500,43.1822,142.74,142.65,13.23]
[1724268656790,27.0062,142.74,142.66,45.0]
[1724268657482,20.0,142.74,142.67,16.1358]
[1724268657795,20.0,142.74,142.68,45.0]
[1724268658089,27.0057,142.74,142.68,45.0]
[1724268658907,20.2352,142.75,142.68,45.0]
[1724268659111,13.5779,142.76,142.68,45.0]
[1724268659281,13.23,142.75,142.68,45.0]
[1724268660304,13.23,142.73,142.68,45.0]
[1724268661479,13.23,142.75,142.68,45.0]
[1724268661682,13.23,142.75,142.69,1.40126667]
[1724268662215,13.23,142.77,142.69,13.23]
[1724268662395,13.23,142.77,142.7,45.0]
[1724268662902,13.23,142.77,142.71,1.40103719]
[1724268663108,13.23,142.77,142.7,45.0]
[1724268663109,7.0043,142.77,142.7,45.0]
[1724268663404,20.2343,142.77,142.7,45.0]
[1724268664700,7.0038,142.78,142.71,21.7841]
[1724268664918,7.0038,142.78,142.72,45.0]
[1724268666408,18.55002385,142.81,142.72,45.0]
[1724268666409,36.0703,142.81,142.72,45.0]
[1724268666584,7.0028,142.8,142.72,58.23]
[1724268667289,20.2328,142.8,142.72,58.23]
[1724268668786,13.23,142.78,142.71,21.7841]
[1724268668984,13.23,142.76,142.71,21.7841]
[1724268669184,14.58141415,142.76,142.71,21.7841]
[1724268670093,13.23,142.76,142.71,21.7841]
[1724268670299,13.23,142.78,142.71,21.7841]
[1724268670595,13.23,142.78,142.72,45.0]
[1724268670780,20.2338,142.78,142.72,45.0]
[1724268671204,7.0042,142.77,142.72,45.0]
[1724268671513,20.2338,142.78,142.72,45.0]
[1724268674528,1.35141415,142.77,142.71,21.7841]
[1724268674701,13.23,142.76,142.71,21.7841]
[1724268675808,26.52483827,142.82,142.71,21.7841]
[1724268676004,7.0038,142.78,142.72,45.0]
[1724268676206,7.0043,142.77,142.72,45.0]
[1724268676401,1.35141415,142.76,142.72,45.0]
[1724268676616,20.2343,142.77,142.72,45.0]
[1724268676916,1.35141415,142.76,142.72,45.0]
[1724268677122,20.2343,142.77,142.72,45.0]
[1724268677330,13.23,142.77,142.72,45.0]
[1724268677825,14.58141415,142.77,142.72,45.0]
[1724268678025,21.58571415,142.77,142.72,45.0]
[1724268680725,20.2334,142.79,142.72,45.0]
[1724268681823,7.0038,142.78,142.72,45.0]
[1724268682330,7.0048,142.76,142.71,21.7841]
[1724268682501,13.23,142.77,142.71,21.7841]
[1724268682502,20.2343,142.77,142.71,21.7841]
[1724268683409,13.23,142.77,142.71,21.7841]
[1724268683599,26.52483827,142.82,142.75,13.23]
[1724268683600,16.02163827,142.82,142.75,13.23]
[1724268683803,16.02163827,142.82,142.76,1.4007218]
[1724268684105,13.27849117,142.82,142.76,1.4007218]
[1724268684303,2.68708402,142.83,142.77,13.23]
[1724268684632,7.0007,142.85,142.77,13.23]
[1724268684830,7.0008,142.84,142.78,45.0]
[1724268685204,2.67611298,142.86,142.76,22.0016]
[1724268685205,7.0018,142.82,142.76,22.0016]
[1724268685405,13.23,142.81,142.76,22.0016]
[1724268685626,13.23,142.81,142.76,15.9175]
[1724268686627,13.23,142.83,142.76,15.9175]
[1724268688408,2.71917434,142.88,142.77,20.92527584]
[1724268688615,13.23,142.85,142.78,45.0]
[1724268691029,20.2305,142.85,142.78,45.0]
[1724268691533,13.23,142.83,142.77,6.2946]
[1724268692118,13.23,142.85,142.77,6.2946]
[1724268692320,13.23,142.85,142.78,45.0]
[1724268692525,12.64799672,142.88,142.78,45.0]
[1724268692716,40.2294,142.87,142.79,13.23]
[1724268693036,20.2294,142.87,142.8,45.0]
[1724268693204,13.23,142.85,142.78,45.0]
[1724268693650,13.23,142.83,142.77,6.2946]
[1724268694548,13.23,142.83,142.76,15.9175]
[1724268694549,1.35141415,142.82,142.76,15.9175]
[1724268694832,20.2314,142.83,142.76,15.9175]
[1724268695035,13.23,142.81,142.76,15.9175]
[1724268702051,13.23,142.83,142.76,15.9175]
[1724268702518,29.7346,142.85,142.76,29.1475]
[1724268702841,20.0,142.84,142.77,45.0]
[1724268703839,2.74180007,142.86,142.78,14.63047739]
[1724268704142,13.23,142.85,142.79,45.0]
[1724268704562,13.23,142.85,142.76,29.1475]
[1724268704847,13.23,142.83,142.77,45.0]
[1724268707429,2.78382849,142.83,142.76,15.9175]
[1724268707747,13.23,142.8,142.76,15.9175]
[1724268708353,13.23,142.8,142.73,21.8415]
[1724268709618,7.0024,142.81,142.73,21.8415]
[1724268709834,20.2324,142.81,142.74,1.4008945]
[1724268710044,13.23,142.81,142.73,35.0715]
[1724268710244,13.23,142.81,142.74,45.0]
[1724268711366,20.2314,142.83,142.74,45.0]
[1724268712037,7.0019,142.82,142.74,45.0]
[1724268715142,2.75981537,142.83,142.75,13.23]
[1724268715351,33.23,142.83,142.75,13.23]
[1724268715740,40.2313,142.83,142.75,13.23]
[1724268716464,40.2313,142.83,142.74,45.0]
[1724268716465,13.23,142.81,142.74,45.0]
[1724268721148,20.2324,142.81,142.74,45.0]
[1724268722466,13.23,142.81,142.74,58.23]
[1724268722641,20.2313,142.83,142.74,58.23]
[1724268722979,20.2313,142.83,142.75,1.40073957]
[1724268723272,21.14228297,142.86,142.74,58.23]
[1724268723273,10.00898297,142.87,142.74,58.23]
[1724268723452,20.2304,142.85,142.76,13.23]
[1724268723649,13.23,142.83,142.78,16.3056]
[1724268725271,13.23,142.81,142.78,16.3056]
[1724268725964,13.23,142.79,142.74,16.139]
[1724268727747,13.23,142.77,142.74,16.139]
[1724268727975,13.23,142.75,142.74,16.139]
[1724268728868,13.23,142.75,142.7,21.937]
[1724268729070,1.35141415,142.78,142.7,21.937]
[1724268729274,13.23,142.72,142.7,21.937]
[1724268730257,1.35141415,142.76,142.7,21.937]
[1724268730457,13.23,142.73,142.7,21.937]
[1724268733468,13.23,142.73,142.7,15.7932]
[1724268735047,13.23,142.74,142.7,15.7932]
[1724268735591,13.23,142.74,142.71,1.40121795]
[1724268736081,13.23,142.74,142.7,15.7932]
[1724268743277,13.23,142.72,142.67,6.0749]
[1724268743482,13.23,142.7,142.67,6.0749]
[1724268743665,13.23,142.7,142.66,16.6008]
[1724268743666,54.27141415,142.73,142.66,16.6008]
[1724268743901,13.23,142.68,142.66,16.6008]
[1724268744484,13.23,142.68,142.63,6.258]
[1724268744799,13.23,142.66,142.62,16.6008]
[1724268748287,7.0082,142.69,142.62,16.6008]
[1724268748475,13.23,142.68,142.62,16.6008]
[1724268749191,13.23,142.69,142.62,16.6008]
[1724268749397,13.23,142.69,142.63,45.0]
[1724268750678,13.23,142.67,142.63,45.0]
[1724268753075,13.23,142.67,142.62,16.6008]
[1724268753267,20.2392,142.67,142.62,16.6008]
[1724268755297,20.2392,142.67,142.6,6.258]
[1724268755298,20.2404,142.65,142.6,6.258]
[1724268755878,13.23,142.65,142.6,6.258]
[1724268756283,8.35961415,142.69,142.6,6.258]
[1724268756589,13.23,142.67,142.6,6.258]
[1724268756803,14.58141415,142.67,142.61,45.0]
[1724268756994,13.23,142.67,142.61,45.0]
[1724268759189,13.23,142.65,142.6,6.258]